[Event "Titled Tuesday Blitz December 7 2021"]
[White "Bilan, Danila"]
[Black "Rustemov, Alexander"]
[WhiteFideId "24161918"]
[BlackFideId "4119002"]
[WhiteElo "2164"]
[BlackElo "2757"]
[Result "0-1"]
[Round "02"]
[TimeControl "180+1"]
[Date "2021.12.07"]
[WhiteClock "0:00:25"]
[BlackClock "0:01:08"]

1. d4 {[%clk 0:03:00]}  d5 {[%clk 0:02:59]} 2. Nf3 {[%clk 0:03:00]}  Nf6 {[%clk 0:02:59]} 3. c4 {[%clk 0:02:59]}  dxc4 {[%clk 0:03:00]} 4. e3 {[%clk 0:02:59]}  e6 {[%clk 0:03:00]} 5. Bxc4 {[%clk 0:03:00]}  c5 {[%clk 0:03:00]} 6. O-O {[%clk 0:02:58]}  a6 {[%clk 0:03:00]} 7. dxc5 {[%clk 0:02:56]}  Qxd1 {[%clk 0:02:58]} 8. Rxd1 {[%clk 0:02:57]}  Bxc5 {[%clk 0:02:58]} 9. a3 {[%clk 0:02:55]}  Nbd7 {[%clk 0:02:43]} 10. b4 {[%clk 0:02:50]}  Be7 {[%clk 0:02:42]} 11. Bb2 {[%clk 0:02:48]}  b6 {[%clk 0:02:36]} 12. Nbd2 {[%clk 0:02:32]}  Bb7 {[%clk 0:02:35]} 13. Ne5 {[%clk 0:02:29]}  Nxe5 {[%clk 0:02:26]} 14. Bxe5 {[%clk 0:02:28]}  O-O {[%clk 0:02:22]} 15. Nf3 {[%clk 0:02:15]}  Rfc8 {[%clk 0:02:19]} 16. Bb3 {[%clk 0:02:03]}  Kf8 {[%clk 0:02:06]} 17. Bd4 {[%clk 0:01:35]}  b5 {[%clk 0:01:58]} 18. Ne5 {[%clk 0:01:33]}  Bd5 {[%clk 0:01:54]} 19. Bxd5 {[%clk 0:01:30]}  Nxd5 {[%clk 0:01:54]} 20. Rac1 {[%clk 0:01:01]}  Rxc1 {[%clk 0:01:32]} 21. Rxc1 {[%clk 0:01:00]}  a5 {[%clk 0:01:32]} 22. bxa5 {[%clk 0:00:55]}  Bxa3 {[%clk 0:01:31]} 23. Ra1 {[%clk 0:00:47]}  b4 {[%clk 0:01:20]} 24. Bb6 {[%clk 0:00:38]}  Bb2 {[%clk 0:01:09]} 25. Bd4 {[%clk 0:00:24]}  Bxa1 {[%clk 0:01:08]} 26. Bxa1 {[%clk 0:00:25]} 0-1


[Site "https://www.chess.com"]

[Event "Titled Tuesday Blitz December 7 2021"]
[White "Degtiarev, Evgeny"]
[Black "Klabis, Rokas"]
[WhiteFideId "4149610"]
[BlackFideId "12805246"]
[WhiteElo "2218"]
[BlackElo "2255"]
[Result "0-1"]
[Round "02"]
[TimeControl "180+1"]
[Date "2021.12.07"]
[WhiteClock "0:00:01"]
[BlackClock "0:00:19"]

1. d4 {[%clk 0:03:00]}  Nf6 {[%clk 0:02:59]} 2. c4 {[%clk 0:03:01]}  e6 {[%clk 0:02:59]} 3. g3 {[%clk 0:03:01]}  d5 {[%clk 0:02:58]} 4. Nf3 {[%clk 0:03:01]}  Be7 {[%clk 0:02:57]} 5. Bg2 {[%clk 0:03:01]}  O-O {[%clk 0:02:58]} 6. O-O {[%clk 0:03:02]}  dxc4 {[%clk 0:02:58]} 7. Qc2 {[%clk 0:03:00]}  a6 {[%clk 0:02:59]} 8. Qxc4 {[%clk 0:02:59]}  b5 {[%clk 0:02:59]} 9. Qc2 {[%clk 0:03:00]}  Bb7 {[%clk 0:02:59]} 10. Bf4 {[%clk 0:02:59]}  Nd5 {[%clk 0:02:50]} 11. Bd2 {[%clk 0:02:55]}  Nd7 {[%clk 0:02:50]} 12. e4 {[%clk 0:02:48]}  N5b6 {[%clk 0:02:49]} 13. Be3 {[%clk 0:02:43]}  Rc8 {[%clk 0:02:48]} 14. Rd1 {[%clk 0:02:33]}  Nc4 {[%clk 0:02:48]} 15. a4 {[%clk 0:02:31]}  Nxe3 {[%clk 0:02:46]} 16. fxe3 {[%clk 0:02:32]}  b4 {[%clk 0:02:35]} 17. Nbd2 {[%clk 0:02:14]}  c5 {[%clk 0:02:35]} 18. d5 {[%clk 0:02:05]}  exd5 {[%clk 0:02:00]} 19. exd5 {[%clk 0:02:06]}  Bxd5 {[%clk 0:01:59]} 20. Nc4 {[%clk 0:02:06]}  Bxc4 {[%clk 0:01:48]} 21. Qxc4 {[%clk 0:02:05]}  Nb6 {[%clk 0:01:48]} 22. Qxa6 {[%clk 0:02:05]}  Qc7 {[%clk 0:01:48]} 23. a5 {[%clk 0:02:01]}  Nd7 {[%clk 0:01:44]} 24. Rd5 {[%clk 0:01:43]}  Nf6 {[%clk 0:01:40]} 25. Re5 {[%clk 0:01:11]}  Ra8 {[%clk 0:01:17]} 26. Qc4 {[%clk 0:01:03]}  Bd6 {[%clk 0:01:14]} 27. Rf5 {[%clk 0:00:57]}  Rxa5 {[%clk 0:01:07]} 28. Rd1 {[%clk 0:00:43]}  Rfa8 {[%clk 0:01:04]} 29. e4 {[%clk 0:00:33]}  Ra1 {[%clk 0:01:01]} 30. Rf1 {[%clk 0:00:26]}  Rxf1+ {[%clk 0:01:00]} 31. Bxf1 {[%clk 0:00:27]}  Ng4 {[%clk 0:00:46]} 32. Qd5 {[%clk 0:00:10]}  Ra1 {[%clk 0:00:27]} 33. e5 {[%clk 0:00:10]}  Bf8 {[%clk 0:00:27]} 34. Qe4 {[%clk 0:00:09]}  Nh6 {[%clk 0:00:24]} 35. Rh5 {[%clk 0:00:07]}  g6 {[%clk 0:00:24]} 36. Rh4 {[%clk 0:00:05]}  Nf5 {[%clk 0:00:23]} 37. Rf4 {[%clk 0:00:05]}  c4 {[%clk 0:00:20]} 38. e6 {[%clk 0:00:05]}  Qb6+ {[%clk 0:00:19]} 39. Kg2 {[%clk 0:00:04]}  Qxe6 {[%clk 0:00:19]} 40. Qxe6 {[%clk 0:00:03]}  fxe6 {[%clk 0:00:20]} 41. Kf2 {[%clk 0:00:02]}  c3 {[%clk 0:00:19]} 42. bxc3 {[%clk 0:00:02]}  bxc3 {[%clk 0:00:20]} 43. Rc4 {[%clk 0:00:02]}  Bg7 {[%clk 0:00:19]} 44. Bd3 {[%clk 0:00:01]}  Ra2+ {[%clk 0:00:19]} 0-1


[Site "https://www.chess.com"]

[Event "Titled Tuesday Blitz December 7 2021"]
[White "Demchenko, Anton"]
[Black "Arencibia Monduy, Antonio"]
[WhiteFideId "4160258"]
[BlackFideId "3507939"]
[WhiteElo "2531"]
[BlackElo "2594"]
[Result "1-0"]
[Round "02"]
[TimeControl "180+1"]
[Date "2021.12.07"]
[WhiteClock "0:00:24"]
[BlackClock "0:00:02"]

1. e4 {[%clk 0:03:00]}  e6 {[%clk 0:02:59]} 2. d4 {[%clk 0:03:00]}  d5 {[%clk 0:02:59]} 3. Nd2 {[%clk 0:03:01]}  dxe4 {[%clk 0:02:59]} 4. Nxe4 {[%clk 0:03:01]}  Nd7 {[%clk 0:03:00]} 5. Nf3 {[%clk 0:03:02]}  Ngf6 {[%clk 0:02:58]} 6. Bg5 {[%clk 0:03:02]}  Be7 {[%clk 0:02:58]} 7. Nxf6+ {[%clk 0:03:02]}  Nxf6 {[%clk 0:02:56]} 8. Bc4 {[%clk 0:02:57]}  O-O {[%clk 0:02:55]} 9. Qe2 {[%clk 0:02:55]}  a6 {[%clk 0:02:35]} 10. a4 {[%clk 0:02:46]}  c5 {[%clk 0:02:23]} 11. dxc5 {[%clk 0:02:45]}  Qa5+ {[%clk 0:02:21]} 12. c3 {[%clk 0:02:45]}  Qxc5 {[%clk 0:02:21]} 13. O-O {[%clk 0:02:44]}  Bd7 {[%clk 0:02:08]} 14. Ne5 {[%clk 0:02:38]}  Be8 {[%clk 0:01:51]} 15. Rfe1 {[%clk 0:02:17]}  Rd8 {[%clk 0:01:47]} 16. a5 {[%clk 0:01:59]}  Bb5 {[%clk 0:01:25]} 17. Bxb5 {[%clk 0:01:48]}  axb5 {[%clk 0:01:25]} 18. Rad1 {[%clk 0:01:31]}  Qc7 {[%clk 0:01:16]} 19. Qxb5 {[%clk 0:00:55]}  Rxd1 {[%clk 0:00:47]} 20. Rxd1 {[%clk 0:00:56]}  Rd8 {[%clk 0:00:45]} 21. Rxd8+ {[%clk 0:00:56]}  Qxd8 {[%clk 0:00:40]} 22. Bxf6 {[%clk 0:00:52]}  gxf6 {[%clk 0:00:22]} 23. Nd7 {[%clk 0:00:45]}  Qc7 {[%clk 0:00:22]} 24. g3 {[%clk 0:00:45]}  Bd8 {[%clk 0:00:22]} 25. Nb6 {[%clk 0:00:44]}  Kg7 {[%clk 0:00:15]} 26. Nc4 {[%clk 0:00:37]}  Qe7 {[%clk 0:00:10]} 27. b4 {[%clk 0:00:35]}  Qc7 {[%clk 0:00:08]} 28. Kf1 {[%clk 0:00:33]}  Be7 {[%clk 0:00:09]} 29. Ke2 {[%clk 0:00:32]}  Qc8 {[%clk 0:00:07]} 30. Kd2 {[%clk 0:00:29]}  e5 {[%clk 0:00:07]} 31. Ne3 {[%clk 0:00:29]}  Qd8+ {[%clk 0:00:07]} 32. Qd3 {[%clk 0:00:26]}  Qc7 {[%clk 0:00:04]} 33. Nf5+ {[%clk 0:00:26]}  Kf8 {[%clk 0:00:05]} 34. Qe4 {[%clk 0:00:25]}  Qd7+ {[%clk 0:00:02]} 35. Ke1 {[%clk 0:00:26]}  Bd8 {[%clk 0:00:02]} 36. Ne3 {[%clk 0:00:24]} 1-0


[Site "https://www.chess.com"]

[Event "Titled Tuesday Blitz December 7 2021"]
[White "Gabdushev, Ruslan"]
[Black "Harshavardhan G B"]
[WhiteFideId "4137833"]
[BlackFideId "25059009"]
[WhiteElo "2312"]
[BlackElo "1825"]
[Result "0-1"]
[Round "02"]
[TimeControl "180+1"]
[Date "2021.12.07"]
[WhiteClock "0:00:03"]
[BlackClock "0:01:02"]

1. c4 {[%clk 0:03:00]}  Nf6 {[%clk 0:02:57]} 2. Nc3 {[%clk 0:02:59]}  e5 {[%clk 0:02:53]} 3. e4 {[%clk 0:02:58]}  Bc5 {[%clk 0:02:52]} 4. g3 {[%clk 0:02:58]}  Nc6 {[%clk 0:02:50]} 5. Bg2 {[%clk 0:02:57]}  d6 {[%clk 0:02:50]} 6. h3 {[%clk 0:02:57]}  a6 {[%clk 0:02:49]} 7. d3 {[%clk 0:02:56]}  Be6 {[%clk 0:02:46]} 8. Nge2 {[%clk 0:02:54]}  h5 {[%clk 0:02:44]} 9. Be3 {[%clk 0:02:52]}  Qd7 {[%clk 0:02:40]} 10. Nd5 {[%clk 0:02:50]}  O-O-O {[%clk 0:02:32]} 11. a3 {[%clk 0:02:43]}  Bxe3 {[%clk 0:02:26]} 12. fxe3 {[%clk 0:02:42]}  Kb8 {[%clk 0:02:26]} 13. Nec3 {[%clk 0:02:23]}  Ne7 {[%clk 0:02:21]} 14. Nxf6 {[%clk 0:02:16]}  gxf6 {[%clk 0:02:20]} 15. Qf3 {[%clk 0:02:17]}  Rh6 {[%clk 0:02:17]} 16. O-O-O {[%clk 0:02:11]}  c6 {[%clk 0:02:15]} 17. Kb1 {[%clk 0:01:55]}  Rg8 {[%clk 0:02:13]} 18. Ne2 {[%clk 0:01:53]}  f5 {[%clk 0:02:10]} 19. Rh2 {[%clk 0:01:18]}  Qe8 {[%clk 0:02:03]} 20. Rc1 {[%clk 0:01:11]}  f6 {[%clk 0:02:01]} 21. Qf1 {[%clk 0:00:48]}  fxe4 {[%clk 0:01:59]} 22. dxe4 {[%clk 0:00:43]}  f5 {[%clk 0:01:59]} 23. Qd1 {[%clk 0:00:41]}  Kc7 {[%clk 0:01:57]} 24. Qd2 {[%clk 0:00:39]}  Rhg6 {[%clk 0:01:54]} 25. c5 {[%clk 0:00:37]}  d5 {[%clk 0:01:51]} 26. Qa5+ {[%clk 0:00:35]}  Kc8 {[%clk 0:01:48]} 27. Qc3 {[%clk 0:00:35]}  fxe4 {[%clk 0:01:25]} 28. Qxe5 {[%clk 0:00:34]}  Bd7 {[%clk 0:01:23]} 29. Bf1 {[%clk 0:00:28]}  Nf5 {[%clk 0:01:22]} 30. Qf4 {[%clk 0:00:26]}  Nxg3 {[%clk 0:01:20]} 31. Nd4 {[%clk 0:00:25]}  Rf8 {[%clk 0:01:16]} 32. Qh4 {[%clk 0:00:20]}  Nxf1 {[%clk 0:01:15]} 33. Re2 {[%clk 0:00:18]}  Ng3 {[%clk 0:01:12]} 34. Rg2 {[%clk 0:00:15]}  Nf5 {[%clk 0:01:10]} 35. Nxf5 {[%clk 0:00:15]}  Bxf5 {[%clk 0:01:09]} 36. Rf2 {[%clk 0:00:14]}  Bd7 {[%clk 0:01:06]} 37. Rxf8 {[%clk 0:00:10]}  Qxf8 {[%clk 0:01:07]} 38. Qxh5 {[%clk 0:00:10]}  Rf6 {[%clk 0:01:07]} 39. Qe5 {[%clk 0:00:09]}  Rf3 {[%clk 0:01:06]} 40. Rc3 {[%clk 0:00:09]}  Rxh3 {[%clk 0:01:04]} 41. Ka2 {[%clk 0:00:08]}  Qh8 {[%clk 0:01:04]} 42. Qe7 {[%clk 0:00:08]}  Rh7 {[%clk 0:01:03]} 43. Qg5 {[%clk 0:00:07]}  Qg7 {[%clk 0:01:02]} 44. Qf4 {[%clk 0:00:06]}  Qf7 {[%clk 0:01:02]} 45. Qg5 {[%clk 0:00:06]}  d4+ {[%clk 0:01:03]} 46. Rb3 {[%clk 0:00:03]}  Be6 {[%clk 0:01:02]} 0-1


[Site "https://www.chess.com"]

[Event "Titled Tuesday Blitz December 7 2021"]
[White "Gabrielian, Artur"]
[Black "Myshakov, Fyodor"]
[WhiteFideId "4131002"]
[BlackFideId "14111284"]
[WhiteElo "2440"]
[BlackElo "2310"]
[Result "1-0"]
[Round "02"]
[TimeControl "180+1"]
[Date "2021.12.07"]
[WhiteClock "0:01:06"]
[BlackClock "0:00:01"]

1. e4 {[%clk 0:03:00]}  c6 {[%clk 0:02:56]} 2. d4 {[%clk 0:03:00]}  d5 {[%clk 0:02:52]} 3. e5 {[%clk 0:03:00]}  Bf5 {[%clk 0:02:51]} 4. h4 {[%clk 0:03:00]}  h5 {[%clk 0:02:50]} 5. Bd3 {[%clk 0:03:00]}  Bxd3 {[%clk 0:02:50]} 6. Qxd3 {[%clk 0:03:01]}  e6 {[%clk 0:02:50]} 7. Nf3 {[%clk 0:03:01]}  Nd7 {[%clk 0:02:46]} 8. O-O {[%clk 0:03:00]}  Ne7 {[%clk 0:02:45]} 9. Bg5 {[%clk 0:02:59]}  Qc7 {[%clk 0:02:45]} 10. Nbd2 {[%clk 0:02:53]}  Nf5 {[%clk 0:02:45]} 11. c4 {[%clk 0:02:52]}  Nb6 {[%clk 0:02:43]} 12. Rac1 {[%clk 0:02:50]}  Be7 {[%clk 0:02:36]} 13. g3 {[%clk 0:02:49]}  O-O {[%clk 0:02:31]} 14. c5 {[%clk 0:02:41]}  Nd7 {[%clk 0:02:22]} 15. Bxe7 {[%clk 0:02:40]}  Nxe7 {[%clk 0:02:22]} 16. Ng5 {[%clk 0:02:40]}  Nf5 {[%clk 0:02:12]} 17. Rfe1 {[%clk 0:02:37]}  Rfe8 {[%clk 0:02:08]} 18. Nf1 {[%clk 0:02:37]}  Nf8 {[%clk 0:02:08]} 19. Ne3 {[%clk 0:02:37]}  g6 {[%clk 0:01:57]} 20. b4 {[%clk 0:02:18]}  Nh7 {[%clk 0:01:52]} 21. Nxf5 {[%clk 0:02:13]}  exf5 {[%clk 0:01:46]} 22. Nh3 {[%clk 0:02:14]}  Nf8 {[%clk 0:01:40]} 23. b5 {[%clk 0:02:12]}  a6 {[%clk 0:01:34]} 24. bxc6 {[%clk 0:01:53]}  bxc6 {[%clk 0:01:34]} 25. Rb1 {[%clk 0:01:53]}  Reb8 {[%clk 0:01:17]} 26. Rxb8 {[%clk 0:01:52]}  Rxb8 {[%clk 0:01:13]} 27. Qxa6 {[%clk 0:01:51]}  Ne6 {[%clk 0:01:12]} 28. Qa4 {[%clk 0:01:42]}  Rb5 {[%clk 0:01:03]} 29. Ng5 {[%clk 0:01:39]}  Qb7 {[%clk 0:01:02]} 30. Nxe6 {[%clk 0:01:38]}  fxe6 {[%clk 0:01:02]} 31. Kg2 {[%clk 0:01:34]}  Rb4 {[%clk 0:00:59]} 32. Qd1 {[%clk 0:01:33]}  Qa6 {[%clk 0:00:58]} 33. Qd2 {[%clk 0:01:29]}  Rb7 {[%clk 0:00:51]} 34. Qh6 {[%clk 0:01:27]}  Rg7 {[%clk 0:00:48]} 35. Rb1 {[%clk 0:01:26]}  Qa7 {[%clk 0:00:42]} 36. Rb6 {[%clk 0:01:26]}  Qc7 {[%clk 0:00:42]} 37. a4 {[%clk 0:01:24]}  f4 {[%clk 0:00:25]} 38. Qxf4 {[%clk 0:01:22]}  Kh7 {[%clk 0:00:22]} 39. Qf6 {[%clk 0:01:20]}  Qd7 {[%clk 0:00:16]} 40. Rb8 {[%clk 0:01:17]}  Qa7 {[%clk 0:00:16]} 41. Qd8 {[%clk 0:01:16]}  g5 {[%clk 0:00:14]} 42. Qh8+ {[%clk 0:01:08]}  Kg6 {[%clk 0:00:14]} 43. Rf8 {[%clk 0:01:08]}  Rf7 {[%clk 0:00:04]} 44. Qg8+ {[%clk 0:01:06]}  Rg7 {[%clk 0:00:01]} 45. Rf6# {[%clk 0:01:06]} 1-0


[Site "https://www.chess.com"]

[Event "Titled Tuesday Blitz December 7 2021"]
[White "Gasanov, Eldar"]
[Black "Malka, Samuel"]
[WhiteFideId "14104466"]
[BlackFideId "20643675"]
[WhiteElo "2454"]
[BlackElo "2457"]
[Result "1-0"]
[Round "02"]
[TimeControl "180+1"]
[Date "2021.12.07"]
[WhiteClock "0:00:53"]
[BlackClock "0:00:28"]

1. d4 {[%clk 0:03:00]}  Nf6 {[%clk 0:02:56]} 2. c4 {[%clk 0:03:00]}  g6 {[%clk 0:02:56]} 3. Nc3 {[%clk 0:03:00]}  Bg7 {[%clk 0:02:56]} 4. Bg5 {[%clk 0:02:59]}  O-O {[%clk 0:02:41]} 5. e4 {[%clk 0:02:58]}  d6 {[%clk 0:02:38]} 6. Qd2 {[%clk 0:02:58]}  Nc6 {[%clk 0:02:26]} 7. d5 {[%clk 0:02:58]}  Ne5 {[%clk 0:02:26]} 8. f4 {[%clk 0:02:54]}  Ned7 {[%clk 0:02:17]} 9. Nh3 {[%clk 0:02:54]}  e6 {[%clk 0:01:58]} 10. Be2 {[%clk 0:02:38]}  exd5 {[%clk 0:01:57]} 11. cxd5 {[%clk 0:02:34]}  h6 {[%clk 0:01:46]} 12. Bxf6 {[%clk 0:02:35]}  Qxf6 {[%clk 0:01:40]} 13. Nf2 {[%clk 0:02:31]}  Qd4 {[%clk 0:01:34]} 14. Qxd4 {[%clk 0:02:18]}  Bxd4 {[%clk 0:01:33]} 15. Rd1 {[%clk 0:02:17]}  Bb6 {[%clk 0:01:21]} 16. O-O {[%clk 0:02:10]}  Re8 {[%clk 0:01:22]} 17. Rfe1 {[%clk 0:02:04]}  Nf6 {[%clk 0:01:15]} 18. Bf3 {[%clk 0:01:55]}  Ng4 {[%clk 0:01:12]} 19. Bxg4 {[%clk 0:01:54]}  Bxg4 {[%clk 0:01:12]} 20. Rd2 {[%clk 0:01:51]}  Bd7 {[%clk 0:01:11]} 21. g3 {[%clk 0:01:39]}  Re7 {[%clk 0:01:05]} 22. Kg2 {[%clk 0:01:31]}  Rae8 {[%clk 0:00:59]} 23. Rde2 {[%clk 0:01:04]}  Bd4 {[%clk 0:00:48]} 24. Kf3 {[%clk 0:00:59]}  h5 {[%clk 0:00:43]} 25. h3 {[%clk 0:00:53]}  Bxf2 {[%clk 0:00:41]} 26. Kxf2 {[%clk 0:00:54]}  Bxh3 {[%clk 0:00:41]} 27. e5 {[%clk 0:00:54]}  Bd7 {[%clk 0:00:36]} 28. Ne4 {[%clk 0:00:54]}  Kg7 {[%clk 0:00:33]} 29. exd6 {[%clk 0:00:53]}  Rxe4 {[%clk 0:00:32]} 30. Rxe4 {[%clk 0:00:52]}  Rxe4 {[%clk 0:00:27]} 31. Rxe4 {[%clk 0:00:53]}  cxd6 {[%clk 0:00:28]} 32. Re7 {[%clk 0:00:53]} 1-0


[Site "https://www.chess.com"]

[Event "Titled Tuesday Blitz December 7 2021"]
[White "Gunduz, Umut Erdem"]
[Black "Adly, Ahmed"]
[WhiteFideId "6381383"]
[BlackFideId "10601619"]
[WhiteElo "2096"]
[BlackElo "2656"]
[Result "0-1"]
[Round "02"]
[TimeControl "180+1"]
[Date "2021.12.07"]
[WhiteClock "0:00:03"]
[BlackClock "0:00:33"]

1. e4 {[%clk 0:03:00]}  c6 {[%clk 0:03:00]} 2. d4 {[%clk 0:03:01]}  d5 {[%clk 0:03:00]} 3. Nd2 {[%clk 0:03:01]}  dxe4 {[%clk 0:02:58]} 4. Nxe4 {[%clk 0:03:02]}  Nd7 {[%clk 0:02:58]} 5. Qe2 {[%clk 0:03:01]}  Ndf6 {[%clk 0:02:59]} 6. Nxf6+ {[%clk 0:03:01]}  Nxf6 {[%clk 0:02:59]} 7. c3 {[%clk 0:03:00]}  Bg4 {[%clk 0:03:00]} 8. f3 {[%clk 0:02:58]}  Bh5 {[%clk 0:02:59]} 9. Nh3 {[%clk 0:02:56]}  Nd5 {[%clk 0:02:56]} 10. Nf4 {[%clk 0:02:42]}  Bg6 {[%clk 0:02:50]} 11. Nxg6 {[%clk 0:02:38]}  hxg6 {[%clk 0:02:51]} 12. g3 {[%clk 0:02:37]}  Qc7 {[%clk 0:02:44]} 13. c4 {[%clk 0:02:27]}  Nf6 {[%clk 0:02:43]} 14. Bf4 {[%clk 0:02:26]}  Qa5+ {[%clk 0:02:41]} 15. Bd2 {[%clk 0:02:25]}  Qc7 {[%clk 0:02:39]} 16. Bf4 {[%clk 0:02:14]}  Qa5+ {[%clk 0:02:38]} 17. Bd2 {[%clk 0:02:14]}  Qb6 {[%clk 0:02:39]} 18. Bc3 {[%clk 0:02:14]}  e6 {[%clk 0:02:39]} 19. a3 {[%clk 0:01:49]}  Qc7 {[%clk 0:02:34]} 20. O-O-O {[%clk 0:01:46]}  Be7 {[%clk 0:02:30]} 21. f4 {[%clk 0:01:44]}  b5 {[%clk 0:02:23]} 22. Bg2 {[%clk 0:01:24]}  bxc4 {[%clk 0:02:10]} 23. Qxc4 {[%clk 0:01:25]}  O-O {[%clk 0:02:05]} 24. Qxc6 {[%clk 0:01:17]}  Qxc6 {[%clk 0:02:04]} 25. Bxc6 {[%clk 0:01:18]}  Rac8 {[%clk 0:02:04]} 26. d5 {[%clk 0:01:07]}  exd5 {[%clk 0:02:01]} 27. Bxd5 {[%clk 0:01:07]}  Bxa3 {[%clk 0:02:01]} 28. Kb1 {[%clk 0:01:04]}  Bc5 {[%clk 0:02:00]} 29. Rhe1 {[%clk 0:00:57]}  Rfe8 {[%clk 0:01:58]} 30. Bf3 {[%clk 0:00:27]}  Bb6 {[%clk 0:01:53]} 31. Ka2 {[%clk 0:00:22]}  Nh7 {[%clk 0:01:40]} 32. Rxe8+ {[%clk 0:00:20]}  Rxe8 {[%clk 0:01:41]} 33. Rd7 {[%clk 0:00:20]}  Nf8 {[%clk 0:01:39]} 34. Rb7 {[%clk 0:00:19]}  Rd8 {[%clk 0:01:40]} 35. Be2 {[%clk 0:00:15]}  Rc8 {[%clk 0:01:39]} 36. Bf3 {[%clk 0:00:15]}  Ne6 {[%clk 0:01:31]} 37. Bd5 {[%clk 0:00:15]}  Nd8 {[%clk 0:01:30]} 38. Rd7 {[%clk 0:00:15]}  Kf8 {[%clk 0:01:30]} 39. Bb4+ {[%clk 0:00:15]}  Kg8 {[%clk 0:01:30]} 40. g4 {[%clk 0:00:12]}  Ne6 {[%clk 0:01:27]} 41. f5 {[%clk 0:00:11]}  gxf5 {[%clk 0:01:28]} 42. gxf5 {[%clk 0:00:12]}  Nd8 {[%clk 0:01:27]} 43. Be7 {[%clk 0:00:12]}  Nc6 {[%clk 0:01:26]} 44. Bd6 {[%clk 0:00:08]}  Nd8 {[%clk 0:01:25]} 45. Be7 {[%clk 0:00:09]}  Kh7 {[%clk 0:01:20]} 46. Bxd8 {[%clk 0:00:08]}  Bxd8 {[%clk 0:01:21]} 47. Bxf7 {[%clk 0:00:08]}  a5 {[%clk 0:01:19]} 48. Bg6+ {[%clk 0:00:07]}  Kh6 {[%clk 0:01:19]} 49. Rd3 {[%clk 0:00:06]}  Bf6 {[%clk 0:01:18]} 50. Rh3+ {[%clk 0:00:06]}  Kg5 {[%clk 0:01:18]} 51. Rg3+ {[%clk 0:00:04]}  Kf4 {[%clk 0:01:18]} 52. Rg2 {[%clk 0:00:05]}  Kf3 {[%clk 0:01:14]} 53. Rd2 {[%clk 0:00:04]}  Ke3 {[%clk 0:01:14]} 54. Rg2 {[%clk 0:00:05]}  Rc4 {[%clk 0:01:14]} 55. Kb3 {[%clk 0:00:04]}  Rb4+ {[%clk 0:01:14]} 56. Ka3 {[%clk 0:00:05]}  Be7 {[%clk 0:01:14]} 57. Ka2 {[%clk 0:00:05]}  Ra4+ {[%clk 0:01:13]} 58. Kb3 {[%clk 0:00:04]}  Rb4+ {[%clk 0:01:14]} 59. Ka2 {[%clk 0:00:05]}  Bf6 {[%clk 0:01:13]} 60. b3 {[%clk 0:00:05]}  Rf4 {[%clk 0:01:12]} 61. Ka3 {[%clk 0:00:04]}  Be7+ {[%clk 0:01:11]} 62. Ka2 {[%clk 0:00:03]}  Rf1 {[%clk 0:01:11]} 63. Rc2 {[%clk 0:00:02]}  Bf6 {[%clk 0:01:11]} 64. b4 {[%clk 0:00:02]}  axb4 {[%clk 0:01:06]} 65. Kb3 {[%clk 0:00:02]}  Rb1+ {[%clk 0:01:03]} 66. Ka2 {[%clk 0:00:03]}  Ra1+ {[%clk 0:01:03]} 67. Kb3 {[%clk 0:00:03]}  Be7 {[%clk 0:01:02]} 68. Bf7 {[%clk 0:00:03]}  Ra3+ {[%clk 0:01:02]} 69. Kc4 {[%clk 0:00:03]}  Rd3 {[%clk 0:00:57]} 70. Be6 {[%clk 0:00:03]}  Rd4+ {[%clk 0:00:54]} 71. Kb3 {[%clk 0:00:04]}  Bf6 {[%clk 0:00:51]} 72. Ka4 {[%clk 0:00:01]}  Kd3 {[%clk 0:00:50]} 73. Kb3 {[%clk 0:00:02]}  Rh4 {[%clk 0:00:49]} 74. Bc4+ {[%clk 0:00:03]}  Ke3 {[%clk 0:00:49]} 75. Re2+ {[%clk 0:00:03]}  Kf3 {[%clk 0:00:49]} 76. Rd2 {[%clk 0:00:03]}  Bc3 {[%clk 0:00:48]} 77. Re2 {[%clk 0:00:03]}  Kf4 {[%clk 0:00:47]} 78. Bd3 {[%clk 0:00:02]}  Rh3 {[%clk 0:00:46]} 79. Bc2 {[%clk 0:00:02]}  Bd2+ {[%clk 0:00:42]} 80. Kc4 {[%clk 0:00:01]}  Rc3+ {[%clk 0:00:40]} 81. Kxb4 {[%clk 0:00:01]}  Rxc2+ {[%clk 0:00:37]} 82. Kb3 {[%clk 0:00:02]}  Kf3 {[%clk 0:00:35]} 83. Kxc2 {[%clk 0:00:02]}  Kxe2 {[%clk 0:00:34]} 84. h4 {[%clk 0:00:02]}  Bh6 {[%clk 0:00:33]} 85. Kc3 {[%clk 0:00:03]}  Ke3 {[%clk 0:00:33]} 86. Kc4 {[%clk 0:00:03]}  Ke4 {[%clk 0:00:33]} 0-1


[Site "https://www.chess.com"]

[Event "Titled Tuesday Blitz December 7 2021"]
[White "Halkias, Stelios"]
[Black "Muradov, Soltan"]
[WhiteFideId "4201809"]
[BlackFideId "14002108"]
[WhiteElo "2575"]
[BlackElo "1854"]
[Result "1-0"]
[Round "02"]
[TimeControl "180+1"]
[Date "2021.12.07"]
[WhiteClock "0:00:40"]
[BlackClock "0:00:38"]

1. d4 {[%clk 0:03:00]}  Nf6 {[%clk 0:02:59]} 2. c4 {[%clk 0:03:00]}  e6 {[%clk 0:02:59]} 3. Nc3 {[%clk 0:03:00]}  Bb4 {[%clk 0:02:59]} 4. e3 {[%clk 0:03:01]}  d5 {[%clk 0:02:53]} 5. Nf3 {[%clk 0:02:58]}  Ne4 {[%clk 0:02:52]} 6. Bd2 {[%clk 0:02:50]}  Nxd2 {[%clk 0:02:51]} 7. Qxd2 {[%clk 0:02:51]}  O-O {[%clk 0:02:48]} 8. Rc1 {[%clk 0:02:49]}  dxc4 {[%clk 0:02:43]} 9. Bxc4 {[%clk 0:02:48]}  a6 {[%clk 0:02:39]} 10. a3 {[%clk 0:02:44]}  Bd6 {[%clk 0:02:35]} 11. O-O {[%clk 0:02:41]}  b5 {[%clk 0:02:35]} 12. Bd3 {[%clk 0:02:41]}  Bb7 {[%clk 0:02:35]} 13. Be4 {[%clk 0:02:41]}  Bxe4 {[%clk 0:02:12]} 14. Nxe4 {[%clk 0:02:40]}  Nd7 {[%clk 0:02:13]} 15. Rc6 {[%clk 0:02:09]}  Nf6 {[%clk 0:02:12]} 16. Nxf6+ {[%clk 0:02:05]}  Qxf6 {[%clk 0:02:13]} 17. Rfc1 {[%clk 0:02:05]}  a5 {[%clk 0:02:01]} 18. Qd3 {[%clk 0:02:01]}  Rfb8 {[%clk 0:01:59]} 19. Nd2 {[%clk 0:01:56]}  g6 {[%clk 0:01:47]} 20. Ne4 {[%clk 0:01:34]}  Qf5 {[%clk 0:01:47]} 21. Qc2 {[%clk 0:01:31]}  b4 {[%clk 0:01:27]} 22. axb4 {[%clk 0:01:14]}  axb4 {[%clk 0:01:24]} 23. b3 {[%clk 0:00:55]}  Ra3 {[%clk 0:01:08]} 24. g3 {[%clk 0:00:53]}  h5 {[%clk 0:01:08]} 25. Nd2 {[%clk 0:00:41]}  Qxc2 {[%clk 0:01:07]} 26. R1xc2 {[%clk 0:00:41]}  Ra1+ {[%clk 0:01:01]} 27. Kg2 {[%clk 0:00:41]}  Rb1 {[%clk 0:01:01]} 28. Nxb1 {[%clk 0:00:41]}  Ra8 {[%clk 0:00:38]} 29. Nd2 {[%clk 0:00:40]} 1-0


[Site "https://www.chess.com"]